fUSD/lending_fUSD_20240324
["ID","MTS","AMOUNT","RATE_DAILY","PERIOD"]
[320319795,1711288243939,-500.0,0.00019452,2]
[320319797,1711288243948,-500.0,0.00019452,2]
[320319799,1711288243958,-500.0,0.00019452,2]
[320319801,1711288243967,-500.0,0.00019452,2]
[320319803,1711288243976,-500.0,0.00019452,2]
[320319805,1711288243986,-614.78,0.00019452,2]
[320319807,1711288243995,-460.11572049,0.00019452,2]
[320319809,1711288244005,-500.0,0.00019452,2]
[320319811,1711288244014,-500.0,0.00019452,2]
[320319813,1711288244023,-500.0,0.00019452,2]
[320319815,1711288244033,-500.0,0.00019452,2]
[320319817,1711288244042,-500.0,0.00019452,2]
[320319819,1711288244052,-500.0,0.00019452,2]
[320319821,1711288244061,-500.0,0.00019452,2]
[320319823,1711288244071,-500.0,0.00019452,2]
[320319825,1711288244081,-500.0,0.00019452,2]
[320319828,1711288244091,-500.0,0.00019452,2]
[320319830,1711288244102,-435.39,0.00019452,2]
[320319832,1711288244112,-500.0,0.00019452,2]
[320319834,1711288244124,-500.0,0.00019452,2]
[320319835,1711288244133,-500.0,0.00019452,2]
[320319838,1711288244142,-500.0,0.00019452,2]
[320319840,1711288244152,-500.0,0.00019452,2]
[320319842,1711288244164,-500.0,0.00019452,2]
[320319844,1711288244174,-500.0,0.00019452,2]
[320319846,1711288244183,-500.0,0.00019452,2]
[320319848,1711288244192,-500.0,0.00019452,2]
[320319850,1711288244201,-500.0,0.00019452,2]
[320319852,1711288244211,-500.0,0.00019452,2]
[320319854,1711288244221,-460.40400125,0.00019452,2]
[320319856,1711288244230,-500.0,0.00019452,2]
[320319858,1711288244240,-500.0,0.00019452,2]
[320319860,1711288244249,-500.0,0.00019452,2]
[320319862,1711288244258,-370.89847932,0.00019452,2]
[320319864,1711288244269,-500.0,0.00019452,2]
[320319866,1711288244278,-500.0,0.00019452,2]
[320319868,1711288244288,-591.21,0.00019452,2]
[320319871,1711288244301,-500.0,0.00019452,2]
[320319873,1711288244311,-500.0,0.00019452,2]
[320319875,1711288244321,-500.0,0.00019452,2]
[320319877,1711288244331,-500.0,0.00019452,2]
[320319879,1711288244340,-500.0,0.00019452,2]
[320319881,1711288244350,-500.0,0.00019452,2]
[320319883,1711288244359,-500.0,0.00019452,2]
[320319885,1711288244373,-500.0,0.00019452,2]
[320319887,1711288244383,-500.0,0.00019452,2]
[320319889,1711288244394,-500.0,0.00019452,2]
[320319891,1711288244404,-500.0,0.00019452,2]
[320319893,1711288244415,-500.0,0.00019452,2]
[320319895,1711288244428,-500.0,0.00019452,2]
[320319898,1711288244438,-500.0,0.00019452,2]
[320319900,1711288244447,-282.68717988,0.00019452,2]
[320319902,1711288244456,-500.0,0.00019452,2]
[320319904,1711288244466,-609.03360479,0.00019452,2]
[320319905,1711288244476,-500.0,0.00019452,2]
[320319908,1711288244485,-500.0,0.00019452,2]
[320319910,1711288244495,-500.0,0.00019452,2]
[320319912,1711288244505,-500.0,0.00019452,2]
[320319913,1711288244514,-500.0,0.00019452,2]
[320319916,1711288244524,-500.0,0.00019452,2]
[320319917,1711288244534,-500.0,0.00019452,2]
[320319918,1711288244543,-500.0,0.00019452,2]
[320319919,1711288244552,-500.0,0.00019452,2]
[320319920,1711288244562,-500.0,0.00019452,2]
[320319921,1711288244575,-500.0,0.00019452,2]
[320319922,1711288244584,-500.0,0.00019452,2]
[320319923,1711288244594,-500.0,0.00019452,2]
[320319924,1711288244603,-500.0,0.00019452,2]
[320319925,1711288244615,-500.0,0.00019452,2]
[320319926,1711288244625,-500.0,0.00019452,2]
[320319927,1711288244634,-510.91,0.00019452,2]
[320319928,1711288244644,-154.32403739,0.00019452,2]
[320319929,1711288244654,-500.0,0.00019452,2]
[320319930,1711288244663,-500.0,0.00019452,2]
[320319931,1711288244673,-500.0,0.00019452,2]
[320319932,1711288244683,-500.0,0.00019452,2]
[320319933,1711288244692,-500.0,0.00019452,2]
[320319934,1711288244702,-500.0,0.00019452,2]
[320319935,1711288244712,-500.0,0.00019452,2]
[320319936,1711288244721,-500.0,0.00019452,2]
[320319937,1711288244731,-500.0,0.00019452,2]
[320319938,1711288244740,-500.0,0.00019452,2]
[320319939,1711288244750,-500.0,0.00019452,2]
[320319940,1711288244759,-500.0,0.00019452,2]
[320319941,1711288244769,-500.0,0.00019452,2]
[320319942,1711288244779,-500.0,0.00019452,2]
[320319943,1711288244788,-500.0,0.00019452,2]
[320319944,1711288244798,-595.53,0.00019452,2]
[320319945,1711288244808,-1389.74,0.00019452,2]
[320319946,1711288244818,-150.0,0.00019452,2]
[320319947,1711288244827,-253.59,0.00019452,2]
[320319948,1711288244840,-500.0,0.00019452,2]
[320319949,1711288244850,-500.0,0.00019452,2]
[320319950,1711288244859,-500.0,0.00019452,2]
[320319951,1711288244871,-500.0,0.00019452,2]
[320319952,1711288244881,-500.0,0.00019452,2]
[320319953,1711288244890,-500.0,0.00019452,2]
[320319954,1711288244900,-500.0,0.00019452,2]
[320319955,1711288244910,-579.65,0.00019452,2]
[320319956,1711288244919,-500.0,0.00019452,2]
[320319957,1711288244929,-500.0,0.00019452,2]
[320319958,1711288244938,-467.09780613,0.00019452,2]
[320319959,1711288244947,-201.06073109,0.00019452,2]
[320319960,1711288245035,-298.93926891,0.00019452,2]
[320319961,1711288245045,-276.04809924,0.00019452,2]
[320319962,1711288245058,-223.95190076,0.00019452,2]
[320319963,1711288245067,-500.0,0.00019452,2]
[320319964,1711288245077,-243.28,0.00019452,2]
[320319965,1711288245086,-385.76809924,0.00019452,2]
[320319966,1711288245117,-404.64145571,0.00019178,2]
[320319967,1711288245129,-102.07124854,0.00019178,2]
[320319968,1711288245139,-114.23190076,0.00019452,2]
[320319969,1711288245148,-400.0768507,0.00019452,2]
[320319970,1711288245705,-1274.56,0.00019178,2]
[320319971,1711288245716,-99.9231493,0.00019452,2]
[320319972,1711288245726,-500.0,0.00019452,2]
[320319973,1711288245735,-500.0,0.00019452,2]
[320319976,1711288245745,-407.38,0.00019452,2]
[320319978,1711288245755,-621.22068301,0.00019452,2]
[320319980,1711288245765,-500.0,0.00019452,2]
[320319982,1711288245775,-500.0,0.00019452,2]
[320319984,1711288245785,-500.0,0.00019452,2]
[320319986,1711288245794,-500.0,0.00019452,2]
[320319988,1711288245804,-500.0,0.00019452,2]
[320319989,1711288245816,-500.0,0.00019452,2]
[320319990,1711288245827,-500.0,0.00019452,2]
[320319991,1711288245839,-500.0,0.00019452,2]
[320319992,1711288245849,-500.0,0.00019452,2]
[320319994,1711288245859,-500.0,0.00019452,2]
[320319997,1711288245870,-500.0,0.00019452,2]
[320319999,1711288245880,-500.0,0.00019452,2]
[320320001,1711288245889,-500.0,0.00019452,2]
[320320002,1711288245899,-500.0,0.00019452,2]
[320320003,1711288245909,-500.0,0.00019452,2]
[320320004,1711288245918,-475.67128976,0.00019452,2]
[320320006,1711288245928,-500.0,0.00019452,2]
[320320008,1711288245938,-500.0,0.00019452,2]
[320320010,1711288245947,-500.0,0.00019452,2]
[320320012,1711288245957,-401.38339756,0.00019452,2]
[320320014,1711288245967,-500.0,0.00019452,2]
[320320015,1711288245977,-629.13,0.00019452,2]
[320320016,1711288245987,-452.6338842,0.00019452,2]
[320320017,1711288245997,-234.46,0.00019452,2]
[320320018,1711288246011,-500.0,0.00019452,2]
[320320019,1711288246021,-500.0,0.00019452,2]
[320320020,1711288246032,-2169.46,0.00019452,2]
[320320021,1711288246042,-500.0,0.00019452,2]
[320320022,1711288246054,-500.0,0.00019452,2]
[320320023,1711288246065,-500.0,0.00019452,2]
[320320024,1711288246075,-500.0,0.00019452,2]
[320320025,1711288246085,-500.0,0.00019452,2]
[320320026,1711288246095,-578.0,0.00019452,2]
[320320027,1711288246106,-500.0,0.00019452,2]
[320320028,1711288246115,-500.0,0.00019452,2]
[320320029,1711288246128,-500.0,0.00019452,2]
[320320030,1711288246140,-2400.18,0.00019452,2]
[320320031,1711288246151,-500.0,0.00019452,2]
[320320032,1711288246161,-500.0,0.00019452,2]
[320320033,1711288246171,-10674.0,0.00019452,2]
[320320034,1711288246181,-500.0,0.00019452,2]
[320320035,1711288246191,-500.0,0.00019452,2]
[320320036,1711288246201,-500.0,0.00019452,2]
[320320037,1711288246211,-543.66,0.00019452,2]
[320320038,1711288246221,-500.0,0.00019452,2]
[320320039,1711288246231,-500.0,0.00019452,2]
[320320040,1711288246240,-500.0,0.00019452,2]
[320320041,1711288246250,-500.0,0.00019452,2]
[320320042,1711288246260,-2914.41,0.00019452,2]
[320320043,1711288246269,-516.13,0.00019452,2]
[320320044,1711288246283,-500.0,0.00019452,2]
[320320045,1711288246294,-557.1,0.00019452,2]
[320320046,1711288246304,-728.96,0.00019452,2]
[320320047,1711288246314,-298.83415845,0.00019452,2]
[320320048,1711288246324,-4051.17,0.00019452,2]
[320320049,1711288246334,-500.0,0.00019452,2]
[320320050,1711288246344,-500.0,0.00019452,2]
[320320051,1711288246354,-500.0,0.00019452,2]
[320320052,1711288246364,-500.0,0.00019452,2]
[320320053,1711288246374,-6.16292272,0.00019452,2]
[320320054,1711288246413,-458.28278652,0.00019452,2]
[320320055,1711288246428,-35.55429076,0.00019452,2]
[320320056,1711288246439,-500.0,0.00019452,2]
[320320057,1711288246450,-1700.71,0.00019452,2]
[320320058,1711288246459,-500.0,0.00019452,2]
[320320059,1711288246469,-500.0,0.00019452,2]
[320320060,1711288246480,-500.0,0.00019452,2]
[320320061,1711288246490,-500.0,0.00019452,2]
[320320062,1711288246500,-505.11450146,0.00019452,2]
[320320063,1711288246510,-500.0,0.00019452,2]
[320320064,1711288246520,-382.12,0.00019452,2]
[320320065,1711288246529,-500.0,0.00019452,2]
[320320066,1711288246539,-260.50120779,0.00019452,2]
[320320067,1711288246566,-239.49879221,0.00019452,2]
[320320068,1711288246575,-324.44135078,0.00019452,2]
[320320069,1711288246587,-175.55864922,0.00019452,2]
[320320070,1711288246598,-253.40415076,0.00019452,2]
[320320071,1711288246621,-246.59584924,0.00019452,2]
[320320072,1711288246631,-500.0,0.00019452,2]
[320320073,1711288246641,-351.01727261,0.00019452,2]
[320320074,1711288247156,-99.26272739,0.00019452,2]
[320320075,1711288247166,-500.0,0.00019452,2]
[320320076,1711288247176,-685.67,0.00019452,2]
[320320077,1711288247186,-500.0,0.00019452,2]
[320320078,1711288247195,-380.97462524,0.00019452,2]
[320320079,1711288247205,-500.0,0.00019452,2]
[320320080,1711288247215,-613.56,0.00019452,2]
[320320081,1711288247225,-152.96103649,0.00019452,2]
[320320082,1711288247234,-675.26,0.00019452,2]
[320320083,1711288247244,-500.0,0.00019452,2]
[320320084,1711288247253,-1143.5,0.00019452,2]
[320320085,1711288247263,-500.0,0.00019452,2]
[320320086,1711288247272,-212.91345804,0.00019452,2]
[320320087,1711288247282,-144.18940051,0.00019452,2]
[320320088,1711288247294,-355.81059949,0.00019452,2]
[320320089,1711288247304,-500.0,0.00019452,2]
[320320090,1711288247314,-511.15387159,0.00019452,2]
[320320091,1711288247323,-1455.29,0.00019452,2]
[320320092,1711288247334,-344.82504539,0.00019452,2]
[320320093,1711288247346,-299.94495461,0.00019452,2]
[320320094,1711288247356,-1117.41,0.00019452,2]
[320320095,1711288247365,-500.0,0.00019452,2]
[320320096,1711288247378,-500.0,0.00019452,2]
[320320097,1711288247387,-500.0,0.00019452,2]
[320320098,1711288247396,-500.0,0.00019452,2]
[320320099,1711288247406,-500.0,0.00019452,2]
[320320100,1711288247417,-387.97138193,0.00019452,2]
[320320101,1711288247428,-500.0,0.00019452,2]
[320320102,1711288247438,-500.0,0.00019452,2]
[320320103,1711288247448,-500.0,0.00019452,2]
[320320104,1711288247457,-500.0,0.00019452,2]
[320320105,1711288247467,-500.0,0.00019452,2]
[320320106,1711288247477,-307.2,0.00019452,2]
[320320107,1711288247486,-378.09121984,0.00019452,2]
[320320108,1711288247500,-830.36878016,0.00019452,2]
[320320109,1711288247510,-576.67,0.00019452,2]
[320320110,1711288247520,-487.71,0.00019452,2]
[320320111,1711288247530,-500.0,0.00019452,2]
[320320112,1711288247540,-500.0,0.00019452,2]
[320320113,1711288247552,-2591.82569526,0.00019452,2]
[320320114,1711288247565,-329.51430474,0.00019452,2]
[320320115,1711288247574,-713.51,0.00019452,2]
[320320116,1711288247583,-583.52,0.00019452,2]
[320320117,1711288247594,-500.0,0.00019452,2]
[320320118,1711288247604,-500.0,0.00019452,2]
[320320119,1711288247613,-367.07699266,0.00019452,2]
[320320120,1711288248029,-1472.17300734,0.00019452,2]
[320320121,1711288248039,-576.74,0.00019452,2]
[320320122,1711288248048,-585.62676341,0.00019452,2]
[320320123,1711288248061,-108.06323659,0.00019452,2]
[320320124,1711288248070,-500.0,0.00019452,2]
[320320125,1711288248083,-500.0,0.00019452,2]
[320320126,1711288248092,-500.0,0.00019452,2]
[320320127,1711288248102,-601.49,0.00019452,2]
[320320128,1711288248110,-500.0,0.00019452,2]
[320320129,1711288248120,-500.0,0.00019452,2]
[320320130,1711288248129,-500.0,0.00019452,2]
[320320131,1711288248138,-500.0,0.00019452,2]
[320320132,1711288248148,-1519.9,0.00019452,2]
[320320133,1711288248157,-1524.46,0.00019452,2]
[320320134,1711288248166,-500.0,0.00019452,2]
[320320135,1711288248175,-500.0,0.00019452,2]
[320320136,1711288248185,-500.0,0.00019452,2]
[320320137,1711288248194,-890.11,0.00019452,2]
[320320138,1711288248203,-500.0,0.00019452,2]
[320320139,1711288248213,-956.84,0.00019452,2]
[320320140,1711288248222,-500.0,0.00019452,2]
[320320141,1711288248231,-1522.32523237,0.00019452,2]
[320320142,1711288248248,-9227.29476763,0.00019452,2]
[320320143,1711288248258,-500.0,0.00019452,2]
[320320144,1711288248267,-500.0,0.00019452,2]
[320320145,1711288248277,-2214.29,0.00019452,2]
[320320146,1711288248286,-500.0,0.00019452,2]
[320320147,1711288248295,-500.0,0.00019452,2]
[320320148,1711288248304,-500.0,0.00019452,2]
[320320149,1711288248314,-2299.89,0.00019452,2]
[320320150,1711288248323,-1251.95,0.00019452,2]
[320320151,1711288248333,-500.0,0.00019452,2]
[320320152,1711288248342,-816.05,0.00019452,2]
[320320153,1711288248354,-500.0,0.00019452,2]
[320320154,1711288248363,-500.0,0.00019452,2]
[320320155,1711288248374,-786.26,0.00019452,2]
[320320156,1711288248383,-500.0,0.00019452,2]
[320320157,1711288248392,-1963.67,0.00019452,2]
[320320158,1711288248402,-500.0,0.00019452,2]
[320320159,1711288248416,-1074.55,0.00019452,2]
[320320160,1711288248425,-500.0,0.00019452,2]
[320320161,1711288248434,-500.0,0.00019452,2]
[320320162,1711288248443,-2153.79,0.00019452,2]
[320320163,1711288248453,-500.0,0.00019452,2]
[320320164,1711288248463,-1076.79,0.00019452,2]
[320320165,1711288248472,-500.0,0.00019452,2]
[320320166,1711288248481,-500.0,0.00019452,2]
[320320167,1711288248490,-427.34239001,0.00019452,2]
[320320168,1711288248501,-500.0,0.00019452,2]
[320320169,1711288248510,-500.0,0.00019452,2]
[320320170,1711288248519,-1164.94,0.00019452,2]
[320320171,1711288248530,-565.12,0.00019452,2]
[320320172,1711288248539,-1292.93,0.00019452,2]
[320320173,1711288248548,-500.0,0.00019452,2]
[320320174,1711288248557,-840.82,0.00019452,2]
[320320175,1711288248566,-500.0,0.00019452,2]
[320320176,1711288248576,-500.0,0.00019452,2]
[320320177,1711288248585,-500.0,0.00019452,2]
[320320178,1711288248594,-3064.78,0.00019452,2]
[320320179,1711288248603,-500.0,0.00019452,2]
[320320180,1711288248613,-868.43,0.00019452,2]
[320320181,1711288248624,-500.0,0.00019452,2]
[320320182,1711288248634,-7809.52,0.00019452,2]
[320320183,1711288248643,-1927.15,0.00019452,2]
[320320184,1711288248652,-500.0,0.00019452,2]
[320320185,1711288248661,-317.77501761,0.00019452,2]
[320320186,1711288248671,-500.0,0.00019452,2]
[320320187,1711288248680,-500.0,0.00019452,2]
[320320188,1711288248689,-500.0,0.00019452,2]
[320320189,1711288248699,-500.0,0.00019452,2]
[320320190,1711288248709,-1729.44,0.00019452,2]
[320320191,1711288248718,-500.0,0.00019452,2]
[320320192,1711288248727,-500.0,0.00019452,2]
[320320193,1711288248736,-1065.6,0.00019452,2]
[320320194,1711288248745,-511.14,0.00019452,2]
[320320195,1711288248755,-500.0,0.00019452,2]
[320320196,1711288248764,-729.51,0.00019452,2]
[320320197,1711288248773,-500.0,0.00019452,2]
[320320198,1711288248783,-1327.06,0.00019452,2]
[320320199,1711288248795,-1048.58,0.00019452,2]
[320320200,1711288248806,-1004.91,0.00019452,2]
[320320201,1711288248816,-550.32,0.00019452,2]
[320320202,1711288248827,-1404.4,0.00019452,2]
[320320203,1711288248838,-500.0,0.00019452,2]
[320320204,1711288248848,-500.0,0.00019452,2]
[320320205,1711288248857,-629.99,0.00019452,2]
[320320206,1711288248866,-500.0,0.00019452,2]
[320320207,1711288248875,-500.0,0.00019452,2]
[320320208,1711288248885,-4159.68,0.00019452,2]
[320320209,1711288248894,-794.14,0.00019452,2]
[320320210,1711288248903,-4046.64,0.00019452,2]
[320320211,1711288248912,-500.0,0.00019452,2]
[320320212,1711288248922,-500.0,0.00019452,2]
[320320213,1711288248931,-282.82174922,0.00019452,2]
[320320214,1711288248940,-500.0,0.00019452,2]
[320320215,1711288248949,-500.0,0.00019452,2]
[320320216,1711288248960,-1495.08,0.00019452,2]
[320320217,1711288248969,-561.72,0.00019452,2]
[320320218,1711288248978,-2204.64,0.00019452,2]
[320320219,1711288248987,-609.94,0.00019452,2]
[320320220,1711288248997,-500.0,0.00019452,2]
[320320221,1711288249006,-500.0,0.00019452,2]
[320320222,1711288249015,-1274.56,0.00019452,2]
[320320223,1711288249025,-301.57821,0.00019452,2]
[320320224,1711288249034,-150.0,0.00019455,2]
[320320225,1711288249043,-150.0,0.00019459,2]
[320320226,1711288249053,-189.10173792,0.00019459,2]
[320320227,1711288249063,-363.22524146,0.00019459,2]
[320320228,1711288249072,-557.65168773,0.00019459,2]
[320320229,1711288249083,-471.01456822,0.00019459,2]
[320320230,1711288249093,-455.0,0.00019459,2]
[320320231,1711288249104,-500.0,0.00019459,2]
[320320232,1711288249113,-514.32379476,0.00019459,2]
[320320233,1711288249123,-200.0,0.0001946,2]
[320320234,1711288249133,-150.0,0.00019463,2]
[320320235,1711288249142,-150.0,0.00019465,2]
[320320236,1711288249152,-150.0,0.00019467,2]
[320320237,1711288249161,-150.0,0.00019476,2]
[320320238,1711288249171,-200.0,0.00019476,2]
[320320239,1711288249181,-150.0,0.00019481,2]
[320320240,1711288249190,-166.4867538,0.00019481,2]
[320320241,1711288249199,-150.0,0.00019483,2]
[320320242,1711288249208,-150.0,0.00019484,2]
[320320243,1711288249217,-150.0,0.00019488,2]
[320320244,1711288249227,-200.0,0.00019493,2]
[320320245,1711288249236,-800.0,0.00019493,2]
[320320246,1711288249246,-200.0,0.00019493,2]
[320320247,1711288249255,-200.0,0.00019493,2]
[320320248,1711288249265,-150.0,0.00019497,2]
[320320249,1711288249274,-150.0,0.00019498,2]
[320320250,1711288249284,-150.0,0.00019499,2]
[320320251,1711288249295,-150.0,0.00019501,2]
[320320252,1711288249304,-150.0,0.00019502,2]
[320320253,1711288249315,-150.0,0.00019505,2]
[320320254,1711288249324,-150.0,0.00019505,2]
[320320255,1711288249334,-150.0,0.00019507,2]
[320320256,1711288249344,-150.0,0.00019507,2]
[320320257,1711288249353,-200.0,0.00019509,2]
[320320258,1711288249363,-150.0,0.00019512,2]
[320320259,1711288249373,-150.0,0.00019512,2]
[320320260,1711288249383,-1000.0,0.00019513,2]
[320320261,1711288249393,-198.92222737,0.00019518,2]
[320320262,1711288249403,-150.0,0.00019525,2]
[320320263,1711288249413,-200.0,0.00019525,2]
[320320264,1711288249426,-150.0,0.00019527,2]
[320320265,1711288249435,-150.0,0.00019528,2]
[320320266,1711288249445,-150.0,0.0001953,2]
[320320267,1711288249454,-150.0,0.00019532,2]
[320320268,1711288249464,-150.0,0.00019533,2]
[320320269,1711288249474,-150.0,0.00019537,2]
[320320270,1711288249484,-200.0,0.00019541,2]
[320320271,1711288249493,-800.0,0.00019541,2]
[320320272,1711288249504,-200.0,0.00019541,2]
[320320273,1711288249514,-150.0,0.00019542,2]
[320320274,1711288249524,-150.0,0.00019542,2]
[320320275,1711288249533,-150.0,0.0001955,2]
[320320276,1711288249543,-150.0,0.00019552,2]
[320320277,1711288249554,-150.0,0.00019553,2]
[320320278,1711288249563,-150.0,0.00019554,2]
[320320279,1711288249572,-1236.45752342,0.00019555,2]
[320320280,1711288249581,-150.0,0.00019557,2]
[320320281,1711288249591,-150.0,0.00019558,2]
[320320282,1711288249600,-150.0,0.0001956,2]
[320320283,1711288249609,-150.0,0.0001956,2]
[320320284,1711288249620,-150.0,0.00019561,2]
[320320285,1711288249630,-150.0,0.00019564,2]
[320320286,1711288249640,-150.0,0.00019571,2]
[320320287,1711288249649,-150.0,0.00019572,2]
[320320288,1711288249659,-150.0,0.00019572,2]
[320320289,1711288249668,-150.0,0.00019573,2]
[320320290,1711288249678,-150.0,0.00019574,2]
[320320291,1711288249687,-150.0,0.00019576,2]
[320320292,1711288249697,-150.0,0.0001958,2]
[320320293,1711288249706,-150.0,0.00019581,2]
[320320294,1711288249715,-150.0,0.00019582,2]
[320320295,1711288249725,-150.0,0.00019582,2]
[320320296,1711288249734,-150.0,0.00019587,2]
[320320297,1711288249750,-150.0,0.00019588,2]
[320320298,1711288249760,-150.0,0.00019588,2]
[320320299,1711288249770,-150.0,0.00019591,2]
[320320300,1711288249780,-205465.9850853,0.00019593,2]
[320320301,1711288249790,-150.0,0.00019595,2]
[320320302,1711288249800,-150.0,0.00019596,2]
[320320303,1711288249810,-150.0,0.00019597,2]
[320320304,1711288249821,-4306.45154586,0.00019598,2]
[320320305,1711288249830,-155.0,0.00019598,2]
[320320306,1711288249840,-308.18464898,0.00019598,2]
[320320307,1711288249849,-599.27979208,0.00019598,2]
[320320308,1711288249859,-500.78599082,0.00019598,2]
[320320309,1711288249870,-150.01,0.00019599,2]
[320320310,1711288249879,-428.38672367,0.00019599,2]
[320320311,1711288249889,-199690.3774471,0.00019599,2]
[320320312,1711288249898,-150.0,0.00019599,2]
[320320313,1711288249908,-89604.22309667,0.000196,2]
[320320314,1711288249923,-9593.4,0.000196,2]
[320320315,1711288249939,-75568.40805683,0.000196,2]
[320320316,1711288249949,-150.0,0.000196,2]
[320320317,1711288249959,-220.0,0.000196,2]
[320320318,1711288249968,-289.22597884,0.000196,2]
[320320319,1711288249978,-181.31584348,0.000196,2]
[320320320,1711288249988,-150.0,0.00019601,2]
[320320321,1711288249998,-150.0,0.00019602,2]
[320320322,1711288250008,-500.0,0.00019602,2]
[320320323,1711288250017,-500.0,0.00019602,2]
[320320324,1711288250027,-500.0,0.00019602,2]
[320320325,1711288250037,-311.2602,0.00019602,2]
[320320326,1711288250047,-1000.0,0.00019602,2]
[320320327,1711288250057,-1000.0,0.00019602,2]
[320320328,1711288250066,-1000.0,0.00019602,2]
[320320329,1711288250076,-1000.0,0.00019602,2]
[320320330,1711288250086,-1000.0,0.00019602,2]
[320320331,1711288250096,-1000.0,0.00019602,2]
[320320332,1711288250106,-1000.0,0.00019602,2]
[320320333,1711288250117,-1000.0,0.00019602,2]
[320320334,1711288250128,-1000.0,0.00019602,2]
[320320335,1711288250138,-1000.0,0.00019602,2]
[320320336,1711288250148,-1000.0,0.00019602,2]
[320320337,1711288250158,-1000.0,0.00019602,2]
[320320338,1711288250168,-1000.0,0.00019602,2]
[320320339,1711288250179,-1000.0,0.00019602,2]
[320320340,1711288250189,-1000.0,0.00019602,2]
[320320341,1711288250199,-1000.0,0.00019602,2]
[320320342,1711288250209,-1000.0,0.00019602,2]
[320320343,1711288250218,-1000.0,0.00019602,2]
[320320344,1711288250228,-1000.0,0.00019602,2]
[320320345,1711288250238,-1000.0,0.00019602,2]
[320320346,1711288250248,-1000.0,0.00019602,2]
[320320347,1711288250258,-1000.0,0.00019602,2]
[320320348,1711288250267,-1000.0,0.00019602,2]
[320320349,1711288250277,-1000.0,0.00019602,2]
[320320350,1711288250286,-1000.0,0.00019602,2]
[320320351,1711288250296,-1000.0,0.00019602,2]
[320320352,1711288250306,-1000.0,0.00019602,2]
[320320353,1711288250316,-1000.0,0.00019602,2]
[320320354,1711288250326,-1000.0,0.00019602,2]
[320320355,1711288250336,-1000.0,0.00019602,2]
[320320356,1711288250345,-1000.0,0.00019602,2]
[320320357,1711288250355,-1000.0,0.00019602,2]
[320320358,1711288250365,-1000.0,0.00019602,2]
[320320359,1711288250375,-1000.0,0.00019602,2]
[320320360,1711288250386,-1000.0,0.00019602,2]
[320320361,1711288250395,-1000.0,0.00019602,2]
[320320362,1711288250407,-1000.0,0.00019602,2]
[320320363,1711288250419,-1000.0,0.00019602,2]
[320320364,1711288250429,-1000.0,0.00019602,2]
[320320365,1711288250439,-497.2753,0.00019602,2]
[320320366,1711288250449,-500.0,0.00019602,2]
[320320367,1711288250459,-500.0,0.00019602,2]
[320320368,1711288250469,-500.0,0.00019602,2]
[320320369,1711288250479,-514.6696,0.00019602,2]
[320320370,1711288250490,-150.0,0.00019606,2]
[320320371,1711288250501,-150.0,0.00019622,2]
[320320372,1711288250511,-150.0,0.00019623,2]
[320320373,1711288250520,-150.0,0.00019625,2]
[320320374,1711288250530,-2556.80203623,0.00019626,2]